Cogmind - Beta 14 @@@ ROGUE MODE // 2025.01.17 @ 23:57:03 Player: Archivar Result: Destroyed by G-34 Mercenary with Small Laser Performance ------------- Evolutions (1) 500 Regions Visited (2) 400 Robots Destroyed (16) 80 Value Destroyed (482) 482 Prototype IDs (0) 0 Alien Tech Used (0) 0 Bonus (74) 74 TOTAL SCORE: 1536 Bonus ------- High Alert Combat Kills 74 Cogmind --------- Core Integrity 0/400 Matter 113/300 Energy 265/265 System Corruption 2% Temperature Cool (68) Movement Walking (260) Ox2 Location -9/Materials Parts ------- > --- POWER (3) -------- Improved Ion Engine > --- PROPULSION (2) --- Aluminum Leg > --- UTILITY (2) ------ Small Storage Unit > --- WEAPON (2) ------- Flak Cannon Flak Cannon > --- INVENTORY (8) ---- Disposable Heat Sink Trap Extractor (0/4) Peak State ------------ > --- POWER ------------ (None) > --- PROPULSION ------- Flight Unit > --- UTILITY ---------- Disposable Heat Sink Disposable Heat Sink > --- WEAPON ----------- Flak Cannon Flak Cannon > --- INVENTORY -------- Trap Extractor Heavy Particle Cannon [Rating: 11] Favorites ----------- Power Light Ion Engine Engine Light Ion Engine Propulsion Aluminum Leg Leg Aluminum Leg Hover Unit Hover Unit Flight Unit Flight Unit Utility Disposable Heat Sink Device Disposable Heat Sink Storage High-capacity Storage Unit Weapon Light Assault Rifle Energy Cannon Beam Cannon Ballistic Gun Light Assault Rifle Ballistic Cannon Flak Cannon Special Melee Weapon Datajack Build | -11 -10 -9 ------- Run | Yrd Mat Mat Slots Evolved 2 | . . 2 Power 2 | . . 2 Propulsion . | . . . Utility . | . . . Weapon . | . . . Parts Attached 24 | 5 3 16 Power 2 | 1 . 1 Engine 2 | 1 . 1 Core . | . . . Reactor . | . . . Propulsion 7 | 2 . 5 Treads . | . . . Leg 4 | 2 . 2 Wheel . | . . . Hover 2 | . . 2 Flight 1 | . . 1 Utility 6 | 1 2 3 Device 2 | . . 2 Storage 4 | 1 2 1 Processor . | . . . Hackware . | . . . Protection . | . . . Artifact . | . . . Weapon 9 | 1 1 7 Energy Gun . | . . . Energy Cannon 2 | . . 2 Ballistic Gun 2 | 1 . 1 Ballistic Cannon 4 | . . 4 Launcher . | . . . Special Weapon . | . . . Impact Weapon . | . . . Slashing Weapon . | . . . Piercing Weapon . | . . . Special Melee Weapon 1 | . 1 . Unidentified Prototypes . | . . . Parts Lost 7 | . 2 5 Power 1 | . 1 . Propulsion 4 | . . 4 Utility . | . . . Weapon 2 | . 1 1 Highest Loss Streak 2 | . 1 2 To Critical Strikes . | . . . Average Slot Usage (%) 42 | . 47 38 Engine 2 | . 4 . Leg 12 | . 20 5 Hover 2 | . . 5 Flight 1 | . . 2 Device 5 | . . 11 Storage 5 | . 10 1 Energy Cannon 2 | . . 5 Ballistic Gun 5 | . 10 1 Ballistic Cannon 3 | . . 6 Peak Build Rating 11 | 5 6 11 Average Rating 4 | 2 3 6 On Entrance 1 | . 5 . Naked Turns 73 | . 55 18 Heaviest Build 44 | 9 44 24 Greatest Support 20 | 20 20 20 Greatest Overweight (x) 2 | . 2 2 Average Overweight (x) . | . . . Largest Inventory Capacity 20 | 8 20 8 Average Capacity 9 | 6 14 5 Most Carried 5 | 5 1 5 Average Carried . | . . 1 Final Capacity 8 | 8 5 8 Final Carried 2 | . . 2 Class Distribution -------------------- 94% | Mutant 5% | Scavenger-Mutant Dominant Class ---------------- Mutant | -10/Materials Mutant | -9/Materials Resources | -11 -10 -9 ----------- Run | Yrd Mat Mat Matter Collected 469 | 195 70 204 Remotely . | . . . Salvage Created 478 | . 70 408 Parts 29 | . 4 25 Haulers Intercepted . | . . . Recyclers Shooed 1 | . . 1 Parts Field Recycled . | . . . Retrieved Matter . | . . . Parts Self-Destructed . | . . . Prevented . | . . . Kills | -11 -10 -9 ------- Run | Yrd Mat Mat Combat Hostiles Destroyed 14 | . 2 12 Guns 2 | . 2 . Cannons 12 | . . 12 Classes Destroyed 6 | . 1 5 Worker 1 | . . 1 Recycler 1 | . . 1 Swarmer 2 | . . 2 Grunt 7 | . 2 5 Brawler 2 | . . 2 Sentry 3 | . . 3 Best Kill Streak 8 | . 1 8 Combat Bots Only 6 | . 1 6 Max Kills in Single Turn 2 | . 1 2 Gunslinging . | . . . Exploded . | . . . Melee . | . . . Uniques/NPCs Destroyed . | . . . Combat | -11 -10 -9 -------- Run | Yrd Mat Mat Hostile Shots Fired 157 | . 48 109 Missed 40 | . 13 27 Damage Taken 1487 | . 429 1058 Core 564 | . 161 403 Absorbed by Shields . | . . . Core Remaining (%) 67 | 100 35 . Volleys Fired 44 | . 17 27 Largest 2 | . 1 2 Hottest 120 | . 20 120 Shots Fired 69 | . 17 52 Gun 17 | . 17 . Cannon 52 | . . 52 Launcher . | . . . Special . | . . . Kinetic 56 | . 17 39 Thermal 13 | . . 13 Explosive . | . . . Electromagnetic . | . . . Robot Hit Streak 7 | . 6 7 Robot Miss Streak 7 | . 1 7 Penetration Max . | . . . Secondary Targets . | . . . Shots Hit Robots 57 | . 14 43 Core Hits 45 | . 5 40 Critical Kills . | . . . Critical Parts Destroyed . | . . . Critical Strikes . | . . . Melee Attacks 1 | . 1 . Impact . | . . . Slashing . | . . . Piercing . | . . . Sneak Attacks . | . . . Combat Hostiles . | . . . Follow-up Attacks . | . . . Damage Inflicted 823 | . 113 710 Guns 113 | . 113 . Cannons 710 | . . 710 Explosions . | . . . Melee . | . . . Ramming . | . . . Kinetic 699 | . 113 586 Thermal 124 | . . 124 Explosive . | . . . Electromagnetic . | . . . Impact . | . . . Slashing . | . . . Piercing . | . . . Highest Corruption 2 | . . 2 Average Corruption 2 | . . 2 Corruption Purged . | . . . Corruption Blocked . | . . . Overload Shots . | . . . Overflow Damage 15 | . . 15 Projectiles 15 | . . 15 Explosions . | . . . Melee . | . . . Knockbacks 9 | . . 9 Impact . | . . . Kinetic 8 | . . 8 Secondary 1 | . . 1 Self-Inflicted Damage . | . . . Shots . | . . . Rammed . | . . . Targets Rammed . | . . . Kicked . | . . . Crushed . | . . . Highest Temperature 155 | . 16 155 Average Temperature 57 | . 9 64 Received Heat Transfer 537 | . 237 300 Siege Activations . | . . . Robots Corrupted . | . . . Combat Hostiles . | . . . Parts Fried . | . . . Impact Corruptions . | . . . Robots Melted . | . . . Combat Hostiles . | . . . Parts Melted . | . . . Heat Transferred 259 | . . 259 Parts Sabotaged . | . . . Parts Stolen . | . . . Parts Stripped . | . . . Power Chain Reactions . | . . . Alert | -11 -10 -9 ------- Run | Yrd Mat Mat Peak Influence 580 | . 120 580 Initial 50 | . . 50 Average 161 | . 79 256 Maximum Alert Level 2 | . . 2 Low Security (%) 77 | 100 100 54 Level 1 6 | . . 13 Level 2 15 | . . 31 Level 3 . | . . . Level 4 . | . . . Level 5 . | . . . High Security . | . . . Max Security . | . . . Squads Dispatched 5 | . 2 3 Investigation 1 | . . 1 Extermination . | . . . Reinforcement 4 | . 2 2 Assault . | . . . Garrison . | . . . Intercept . | . . . Searches Triggered . | . . . Construction Impeded . | . . . Haulers Reinforced . | . . . Active Scanning Responses . | . . . Cargo Convoy Interrupts . | . . . Stealth | -11 -10 -9 --------- Run | Yrd Mat Mat Distress Signals 4 | . 2 2 Communications Jammed . | . . . Distress Signals . | . . . Times Spotted 43 | . 13 30 Peak Tracking Total 11 | . 5 11 Tactical Retreats 8 | . 3 5 Traps | -11 -10 -9 ------- Run | Yrd Mat Mat Traps Triggered 1 | . 1 . Indirectly . | . . . Trap Hack Attempts . | . . . Triggered . | . . . Disarmed . | . . . Reprogrammed . | . . . Reused . | . . . Traps Extracted . | . . . Installed . | . . . Triggered . | . . . Machines | -11 -10 -9 ---------- Run | Yrd Mat Mat Machines Disabled 1 | . . 1 Max in Single Turn 1 | . . 1 Machines Repaired . | . . . Machines Dismantled . | . . . Machines Sabotaged . | . . . Overloaded Fab Kills . | . . . Hacking | -11 -10 -9 --------- Run | Yrd Mat Mat Machines Accessed 1 | . . 1 Terminals 1 | . . 1 Fabricators . | . . . Repair Stations . | . . . Recycling Units . | . . . Scanalyzers . | . . . Garrison Access . | . . . Total Hacks 2 | . . 2 Successful . | . . . Failed 2 | . . 2 Catastrophic 1 | . . 1 Database Lockouts . | . . . Manual . | . . . Terminals 2 | . . 2 Fabricators . | . . . Repair Stations . | . . . Recycling Units . | . . . Scanalyzers . | . . . Garrison Access . | . . . Terminal Hacks . | . . . Fabricator Hacks . | . . . Repair Station Hacks . | . . . Recycling Unit Hacks . | . . . Scanalyzer . | . . . Garrison Access Hacks . | . . . Unauthorized Hacks . | . . . Terminals . | . . . Fabricators . | . . . Repair Stations . | . . . Recycling Units . | . . . Scanalyzers . | . . . Garrison Access . | . . . Data Cores Recovered . | . . . Used . | . . . Hacking Detections 1 | . . 1 Full Trace Events 1 | . . 1 Feedback Events . | . . . Feedback Blocked . | . . . Robot Schematics Acquired . | . . . Robots Built . | . . . Authchips . | . . . Time . | . . . Total Robot Build Rating . | . . . Part Schematics Acquired . | . . . Parts Built . | . . . Authchips . | . . . Time . | . . . Total Part Build Rating . | . . . Parts Repaired . | . . . Time . | . . . Parts Recycled . | . . . Recycled Matter . | . . . Retrieved Matter . | . . . Retrieved Components . | . . . Parts Scanalyzed . | . . . Part Schematics Acquired . | . . . Parts Damaged . | . . . Bothacking | -11 -10 -9 ------------ Run | Yrd Mat Mat Used RIF Installer . | . . . Robots Hacked . | . . . Non-combat . | . . . Combat . | . . . Robot Hacks Applied . | . . . Relay Couplers Released . | . . . Fabnet Peak Effective % . | . . . Robots Rewired . | . . . Allies Hacked . | . . . Hacks Repelled . | . . . Allies | -11 -10 -9 -------- Run | Yrd Mat Mat Total Allies . | . . . Largest Group . | . . . Highest-Rated Group . | . . . Highest-Rated Ally . | . . . Total Orders . | . . . Ally Attacks . | . . . Total Damage . | . . . Kills . | . . . Allies Corrupted . | . . . Allies Melted . | . . . Intel | -11 -10 -9 ------- Run | Yrd Mat Mat Robot Analysis Total . | . . . Derelict Logs Recovered . | . . . Drone Launches . | . . . Drone Recoveries . | . . . Exploration | -11 -10 -9 ------------- Run | Yrd Mat Mat Turns Passed 608 | 46 260 302 Spaces Moved 537 | 44 177 316 Core 182 | 23 120 39 Treads . | . . . Legs 103 | 21 57 25 Wheels . | . . . Hover 74 | . . 74 Flight 178 | . . 178 Fastest Speed 40 | 50 50 40 Average Speed 76 | 83 110 56 Slowest Speed 260 | 120 260 200 Overloaded Moves . | . . . Propulsion Burnouts . | . . . Robots Hopped 6 | . . 6 Cave-ins Triggered . | . . . Exploration Rate (%) 21 | 3 26 35 Regions Visited 2 Branch Regions . Pre-discovered Areas . | . . . Known Exits Taken . | . . . Unknown Exits Taken 2 | 1 1 . Scrap Searched . | . . . Spaces Dug . | . . . Terrain Destroyed . | . . . Melee . | . . . Projectile . | . . . AOE . | . . . Terrain Rammed . | . . . Walls Destroyed . | . . . Machines Disabled . | . . . Actions | -11 -10 -9 --------- Run | Yrd Mat Mat Total 667 | 53 229 385 Wait 29 | . 23 6 Move 523 | 43 176 304 Hop 6 | . . 6 Pick Up 27 | 5 3 19 Fast Attach . | . . . Attach 24 | 5 3 16 Detach . | . . . Swap . | . . . Drop 13 | . 6 7 Fire 44 | . 17 27 Melee 1 | . 1 . Ram . | . . . Kick . | . . . Crush . | . . . Escape Stasis . | . . . Rewire . | . . . Trap . | . . . Miscellaneous . | . . . Route ------- -11/Scrapyard -10/Materials -9/Materials History --------- Turn | Location | Event 4 | -11/Scrapyard | Discovered new exit (range 15) 47 | -11/Scrapyard | Entered Materials 299 | -10/Materials | Discovered new exit (range 13) 305 | -10/Materials | Core integrity fell below 50% 307 | -10/Materials | Build established: Mutant 307 | -10/Materials | Entered another Materials area 307 | -9/Materials | Evolved 2 slots: Power x2 534 | -9/Materials | Core integrity fell below 50% 549 | -9/Materials | Core integrity fell below 20% 609 | -9/Materials | Destroyed by G-34 Mercenary with Small Laser Last Messages --------------- 00564_ Y-45 Defender destroyed. 00567_ K-01 Serf collects debris. 00574_ Acquired Sml. Storage Unit. 00575_ K-01 Serf collects debris. 00576_ Dropped Hvy. Particle Cannon. 00577_ K-01 Serf collects debris. 00582_ Acquired Imp. Ion Engine. 00583_ K-01 Serf collects debris. 00583_ R-06 Scavenger collects Lgt. Armor Plating. 00587_ K-01 Serf collects debris. 00589_ R-06 Scavenger collects Hvy. Particle Cannon. 00591_ K-01 Serf collects debris. 00601_ G-34 Mercenary knocked back. 00604_ G-34 Mercenary destroyed. 00606_ Aluminum Leg destroyed. 00606_ System corrupted by crushing effect (+2). 00607_ B-36 Bruiser destroyed. [Achievement: First Step to Greatness] Map ----- +----------------------------------------------------+ | ??????????????????# #??????????#######???????? | | ??????????????????# #????????????????????????? | | ??????????????????# #????????????????????????? | | ?????##+########### #????????????????????????? | | ?????# #????????????????????????? | | ?????# #####+#### #????????????????????????? | | ??????????# T # #????????????????????????? | | ??????????# # #????????????????????????? | | ??????????# # #???????? ???????????????? | | ?????# ???# # % ##### ??????????????? | | ?????# ########## ?????????????? | | ?????# % ?????????????? | | ?????+ ?????????????? | | ?????# ??????????????? | | ?????# ####### ##+###### =??????????????? | | ???????????????#[ #? ?????????????????????? | | ??????????######!= #?? ?????????????????????? | | ??????????#]] =!*%! #????????????????????????? | | ??????????#]*%*%=% #????????????????????????? | | ??????????# * ] " #????????????????????????? | | ??????????# !! ###????????????????????????? | | ??????????#!! #########??????????????????? | | ??????????#!! # #??????????????????? | | ??????????##### # #??????????????????? | | ?????????????## % # #??????????????????? | | ?????????????# " [ #/=@ #??????????????????? | | ?????????????# T ##g######??????????????????? | | ?????????????# " g%#???????????????????????? | | ?????????????# [ #???????????????????????? | | ?????????????# #???????????????????????? | | ?????????????########### ??????????????????????? | | ???????????????????????# ###?????????????????????? | | ???????????????????????# #???????????????????????? | | ???????????????????????# #???????????????????????? | | ??????????????????????? ???????????????????????? | | ??????????????????????? ???????????????????????? | | ??????????????????????? ???????????????????????? | | ???????????????????????# #???????????????????????? | | ???????????????????????? ????????????????????????? | | ???????????????????????? ????????????????????????? | | ???????????????????????? ????????????????????????? | | ???????????????????????? ????????????????????????? | | ?????????????????????????????????????????????????? | | ?????????????????????????????????????????????????? | | ?????????????????????????????????????????????????? | | ?????????????????????????????????????????????????? | | ?????????????????????????????????????????????????? | | ?????????????????????????????????????????????????? | | ?????????????????????????????????????????????????? | | ?????????????????????????????????????????????????? | +----------------------------------------------------+ Best States ------------- Heat Dissipation 28 Coolant Potential 100 Energy Generation 12 Energy Capacity 265 Matter Stores 293 Matter Capacity 450 Sight Range 16 Terrain Scan Density 10 Evasion (%) 62 Item Schematics ----------------- None Robot Schematics ------------------ None Fabricated ------------ Nothing Alien Tech Used ----------------- None Achievements -------------- First Step to Greatness More Dakka Please One Hack Too Far Storm Trooper Challenges ------------ None Game ------ Seed NullEnhancedInverter Manual? 0 Play Time 00:13:45 Cumulative 11.4 hours Start 2025.01.17 @ 23:48:15 End 2025.01.17 @ 23:57:03 Sessions 1 Manual Loads 0 Difficulty Rogue Special Mode None Game No. 28 Rogue 28 Adventurer 0 Explorer 0 Win Type - Total 1 Types 1/0/0/0/0/0/0/0/0 Lore% 3 Gallery% 21 Achievement% 1 Wizard Run 0 Options --------- Layout 1 ASCII 0 Keyboard 0 Movement Numpad Keybinds 0 Fullscreen 2 Font 32/SmallcapsGlow Map View 50x35 Zoom Use 0% Tactical HUD 1 Map Filters NONE Filters NONE Steam 1 RUN: 645166a2-a2fa-4c69-a0cf-1ae5d50c1138